fUSD/lending_fUSD_20260630
["ID","MTS","AMOUNT","RATE_DAILY","PERIOD"]
[426743297,1782777054000,-229.24227464,0.00025687,2]
[426743294,1782777054000,-203.72030867,0.00025687,2]
[426743302,1782777054000,-356.25771732,0.00025687,2]
[426743312,1782777054000,-650.32530046,0.00025703,2]
[426743301,1782777054000,-430.21276821,0.00025687,2]
[426743303,1782777054000,-539.85989567,0.00025687,2]
[426743305,1782777054000,-284.76188758,0.00025687,2]
[426743309,1782777054000,-655.35450628,0.00025703,2]
[426743307,1782777054000,-305.06135975,0.00025687,2]
[426743304,1782777054000,-511.06767563,0.00025687,2]
[426743308,1782777054000,-248.36443086,0.00025703,2]
[426743306,1782777054000,-523.22353398,0.00025687,2]
[426743310,1782777054000,-353.5690558,0.00025703,2]
[426743313,1782777054000,-609.24782756,0.00025703,2]
[426743314,1782777054000,-470.07627621,0.00025703,2]
[426743316,1782777054000,-540.98705435,0.00025703,2]
[426743315,1782777054000,-476.70399868,0.00025703,2]
[426743317,1782777054000,-467.40938366,0.00025703,2]
[426743289,1782777054000,-591.66775325,0.00025687,2]
[426743300,1782777054000,-248.99164921,0.00025687,2]
[426743265,1782777054000,-150.0,0.00025373,2]
[426743286,1782777054000,-214.00308607,0.00025687,2]
[426743290,1782777054000,-192.38320141,0.00025687,2]
[426743260,1782777054000,-217.59292995,0.00025,2]
[426743259,1782777054000,-888.10058497,0.00025,2]
[426743262,1782777054000,-5034.7553864,0.00025106,2]
[426743264,1782777054000,-200.0,0.00025372,2]
[426743275,1782777054000,-474.8206901,0.0002568,2]
[426743267,1782777054000,-500.0,0.00025486,2]
[426743266,1782777054000,-162.64,0.000254,7]
[426743276,1782777054000,-238.23009632,0.0002568,2]
[426743268,1782777054000,-197.0,0.0002552,2]
[426743269,1782777054000,-153.0,0.00025548,3]
[426743273,1782777054000,-151.0,0.00025548,3]
[426743272,1782777054000,-153.0,0.00025548,3]
[426743277,1782777054000,-596.43940097,0.0002568,2]
[426743270,1782777054000,-153.0,0.00025548,3]
[426743274,1782777054000,-152.0,0.00025548,3]
[426743284,1782777054000,-555.05315288,0.00025687,2]
[426743288,1782777054000,-606.80423092,0.00025687,2]
[426743283,1782777054000,-306.46855053,0.00025687,2]
[426743281,1782777054000,-229.81167333,0.00025687,2]
[426743285,1782777054000,-242.61557316,0.00025687,2]
[426743278,1782777054000,-242.37690128,0.00025687,2]
[426743287,1782777054000,-485.37860775,0.00025687,2]
[426743282,1782777054000,-541.19162723,0.00025687,2]
[426743279,1782777054000,-185.75171505,0.00025687,2]
[426743271,1782777054000,-153.0,0.00025548,3]
[426743280,1782777054000,-290.14612559,0.00025687,2]
[426743355,1782777055000,-332.19039914,0.00026238,2]
[426743357,1782777055000,-368.40589506,0.00026238,2]
[426743356,1782777055000,-239.58028027,0.00026238,2]
[426743352,1782777055000,-500.0,0.000262,2]
[426743347,1782777055000,-1359.68325,0.00026,2]
[426743353,1782777055000,-630.48,0.000262,2]
[426743350,1782777055000,-557.35,0.000262,2]
[426743351,1782777055000,-820.01,0.000262,2]
[426743349,1782777055000,-150.0,0.00026054,5]
[426743359,1782777055000,-633.09425346,0.00026238,2]
[426743354,1782777055000,-546.01,0.000262,2]
[426743361,1782777055000,-476.46019264,0.00026238,2]
[426743373,1782777055000,-386.76487263,0.00026245,2]
[426743370,1782777055000,-171.76589784,0.00026245,2]
[426743363,1782777055000,-221.01631383,0.00026238,2]
[426743366,1782777055000,-432.6875066,0.00026245,2]
[426743367,1782777055000,-434.32580055,0.00026245,2]
[426743364,1782777055000,-166.4894119,0.00026245,2]
[426743362,1782777055000,-795.25253463,0.00026238,2]
[426743368,1782777055000,-169.83013097,0.00026245,2]
[426743365,1782777055000,-484.75380255,0.00026245,2]
[426743369,1782777055000,-413.90750825,0.00026245,2]
[426743371,1782777055000,-580.29225119,0.00026245,2]
[426743383,1782777055000,-485.23114631,0.00026245,2]
[426743358,1782777055000,-322.56784184,0.00026238,2]
[426743360,1782777055000,-314.20712266,0.00026238,2]
[426743348,1782777055000,-2485.5,0.00026013,2]
[426743334,1782777055000,-479.930466,0.00025744,2]
[426743342,1782777055000,-3149.37809064,0.00025819,2]
[426743375,1782777055000,-409.26730357,0.00026245,2]
[426743319,1782777055000,-159.99787058,0.00025703,2]
[426743321,1782777055000,-471.72217662,0.00025721,2]
[426743318,1782777055000,-269.63362701,0.00025703,2]
[426743320,1782777055000,-431.93206847,0.00025721,2]
[426743323,1782777055000,-259.98669383,0.00025721,2]
[426743325,1782777055000,-529.36274297,0.00025721,2]
[426743326,1782777055000,-512.93020324,0.00025721,2]
[426743328,1782777055000,-575.70314946,0.00025721,2]
[426743324,1782777055000,-203.4711664,0.00025721,2]
[426743327,1782777055000,-166.57269421,0.00025721,2]
[426743329,1782777055000,-485.19813699,0.00025721,2]
[426743346,1782777055000,-155.8863578,0.00026,5]
[426743331,1782777055000,-207.53980692,0.00025721,2]
[426743333,1782777055000,-485.98258975,0.00025721,2]
[426743332,1782777055000,-555.42705004,0.00025721,2]
[426743338,1782777055000,-528.13436315,0.00025767,2]
[426743335,1782777055000,-482.393005,0.00025744,2]
[426743340,1782777055000,-152.0,0.00025803,3]
[426743336,1782777055000,-578.89343143,0.00025767,2]
[426743339,1782777055000,-602.430033,0.00025767,2]
[426743337,1782777055000,-584.58670351,0.00025767,2]
[426743341,1782777055000,-475.04688372,0.00025819,2]
[426743344,1782777055000,-154.46935744,0.00025927,2]
[426743345,1782777055000,-4125.57,0.00026,2]
[426743343,1782777055000,-505.0,0.00025833,11]
[426743330,1782777055000,-335.09343351,0.00025721,2]
[426743322,1782777055000,-563.43995562,0.00025721,2]
[426743372,1782777055000,-265.46981633,0.00026245,2]
[426743377,1782777055000,-403.38515777,0.00026245,2]
[426743409,1782777055000,-434.70408779,0.00026245,2]
[426743408,1782777055000,-458.48454928,0.00026245,2]
[426743414,1782777055000,-233.0673327,0.00026245,2]
[426743412,1782777055000,-602.47039695,0.00026245,2]
[426743413,1782777055000,-497.98329842,0.00026245,2]
[426743416,1782777055000,-534.38657598,0.00026245,2]
[426743407,1782777055000,-438.86715345,0.00026245,2]
[426743417,1782777055000,-719.81319423,0.00026245,2]
[426743410,1782777055000,-420.85316974,0.00026245,2]
[426743415,1782777055000,-645.31915231,0.00026245,2]
[426743419,1782777055000,-569.52377516,0.00026245,2]
[426743418,1782777055000,-681.42356751,0.00026245,2]
[426743411,1782777055000,-151.03583196,0.00026245,2]
[426743429,1782777055000,-635.60533158,0.00026262,2]
[426743422,1782777055000,-496.72886171,0.00026262,2]
[426743423,1782777055000,-873.80600837,0.00026262,2]
[426743425,1782777055000,-706.97915723,0.00026262,2]
[426743424,1782777055000,-530.3535837,0.00026262,2]
[426743426,1782777055000,-867.10040062,0.00026262,2]
[426743427,1782777055000,-812.33043675,0.00026262,2]
[426743428,1782777055000,-626.76836827,0.00026262,2]
[426743430,1782777055000,-721.31607247,0.00026262,2]
[426743433,1782777055000,-539.26725402,0.00026262,2]
[426743432,1782777055000,-623.21251155,0.00026262,2]
[426743431,1782777055000,-153.33589812,0.00026262,2]
[426743382,1782777055000,-740.07087051,0.00026245,2]
[426743421,1782777055000,-457.59203963,0.00026245,2]
[426743406,1782777055000,-407.44061734,0.00026245,2]
[426743420,1782777055000,-697.63137863,0.00026245,2]
[426743402,1782777055000,-169.25631379,0.00026245,2]
[426743400,1782777055000,-161.69376989,0.00026245,2]
[426743378,1782777055000,-721.58883631,0.00026245,2]
[426743381,1782777055000,-213.98099958,0.00026245,2]
[426743379,1782777055000,-459.7028258,0.00026245,2]
[426743376,1782777055000,-331.67554682,0.00026245,2]
[426743380,1782777055000,-161.44398867,0.00026245,2]
[426743384,1782777055000,-165.37696929,0.00026245,2]
[426743386,1782777055000,-342.91394514,0.00026245,2]
[426743394,1782777055000,-169.80619532,0.00026245,2]
[426743393,1782777055000,-156.18192088,0.00026245,2]
[426743387,1782777055000,-647.171477,0.00026245,2]
[426743391,1782777055000,-317.1586583,0.00026245,2]
[426743389,1782777055000,-809.0723079,0.00026245,2]
[426743374,1782777055000,-459.62334666,0.00026245,2]
[426743392,1782777055000,-165.89211282,0.00026245,2]
[426743388,1782777055000,-442.41802345,0.00026245,2]
[426743405,1782777055000,-246.28385176,0.00026245,2]
[426743404,1782777055000,-711.42505915,0.00026245,2]
[426743401,1782777055000,-164.08299411,0.00026245,2]
[426743399,1782777055000,-229.17957011,0.00026245,2]
[426743398,1782777055000,-380.3674483,0.00026245,2]
[426743403,1782777055000,-168.88152899,0.00026245,2]
[426743395,1782777055000,-384.76640283,0.00026245,2]
[426743396,1782777055000,-374.83633304,0.00026245,2]
[426743390,1782777055000,-788.89033767,0.00026245,2]
[426743385,1782777055000,-428.00617215,0.00026245,2]
[426743397,1782777055000,-556.58483058,0.00026245,2]
[426743469,1782777056000,-1783.0,0.000268,2]
[426743470,1782777056000,-3934.91557074,0.000268,2]
[426743473,1782777056000,-925.08858814,0.00026803,2]
[426743472,1782777056000,-901.98604539,0.00026803,2]
[426743471,1782777056000,-408.0,0.000268,2]
[426743467,1782777056000,-218.4373089,0.00026768,5]
[426743466,1782777056000,-505.0,0.00026667,12]
[426743465,1782777056000,-150.0,0.00026641,2]
[426743464,1782777056000,-1475.79796541,0.00026617,2]
[426743475,1782777056000,-986.11292209,0.00026803,2]
[426743468,1782777056000,-791.36781683,0.00026795,2]
[426743474,1782777056000,-808.96434625,0.00026803,2]
[426743477,1782777056000,-753.08799619,0.0002682,2]
[426743481,1782777056000,-901.64509059,0.0002682,2]
[426743478,1782777056000,-783.46046034,0.0002682,2]
[426743480,1782777056000,-945.90429971,0.0002682,2]
[426743479,1782777056000,-794.50666447,0.0002682,2]
[426743476,1782777056000,-889.28132393,0.00026803,2]
[426743483,1782777056000,-783.36,0.00026829,2]
[426743482,1782777056000,-631.3,0.00026829,2]
[426743486,1782777056000,-872.03922329,0.00026839,2]
[426743488,1782777056000,-925.71175006,0.00026839,2]
[426743485,1782777056000,-348.69,0.00026829,2]
[426743495,1782777056000,-1004.050055,0.0002694,2]
[426743463,1782777056000,-2969.7411031,0.00026607,2]
[426743484,1782777056000,-212.65,0.00026829,7]
[426743462,1782777056000,-584.3445072,0.00026607,2]
[426743489,1782777056000,-809.97098292,0.00026839,2]
[426743461,1782777056000,-162.64,0.000266,7]
[426743434,1782777056000,-319.99574117,0.00026262,2]
[426743435,1782777056000,-215.96603423,0.0002628,2]
[426743438,1782777056000,-519.97338766,0.0002628,2]
[426743436,1782777056000,-707.58326492,0.0002628,2]
[426743437,1782777056000,-751.25327416,0.0002628,2]
[426743439,1782777056000,-406.94233281,0.0002628,2]
[426743440,1782777056000,-705.81699062,0.0002628,2]
[426743442,1782777056000,-158.27014302,0.0002628,2]
[426743441,1782777056000,-683.90693766,0.0002628,2]
[426743445,1782777056000,-164.36863685,0.0002628,2]
[426743444,1782777056000,-188.98369876,0.0002628,2]
[426743443,1782777056000,-333.14538841,0.0002628,2]
[426743460,1782777056000,-270.83436384,0.00026397,2]
[426743447,1782777056000,-174.19192964,0.0002628,2]
[426743448,1782777056000,-646.93084932,0.0002628,2]
[426743446,1782777056000,-767.60419927,0.0002628,2]
[426743450,1782777056000,-415.07961383,0.0002628,2]
[426743452,1782777056000,-647.97678634,0.0002628,2]
[426743458,1782777056000,-803.240044,0.00026326,2]
[426743453,1782777056000,-426.00662091,0.0002628,2]
[426743457,1782777056000,-704.17915087,0.00026326,2]
[426743459,1782777056000,-633.39584496,0.00026379,2]
[426743451,1782777056000,-740.56940005,0.0002628,2]
[426743454,1782777056000,-500.0,0.00026326,2]
[426743455,1782777056000,-771.85790857,0.00026326,2]
[426743456,1782777056000,-779.44893802,0.00026326,2]
[426743449,1782777056000,-502.64015027,0.0002628,2]
[426743490,1782777056000,-200.0,0.00026874,2]
[426743492,1782777056000,-791.74480621,0.0002694,2]
[426743493,1782777056000,-974.31117252,0.0002694,2]
[426743523,1782777056000,-1208.60850225,0.00027397,2]
[426743533,1782777056000,-505.0,0.000275,13]
[426743524,1782777056000,-261.27,0.000274,7]
[426743526,1782777056000,-257.01,0.000274,7]
[426743525,1782777056000,-225.16,0.000274,7]
[426743534,1782777056000,-1475.79796541,0.00027544,2]
[426743529,1782777056000,-1278.0,0.00027452,2]
[426743527,1782777056000,-3565.0,0.00027452,2]
[426743528,1782777056000,-283.0,0.00027452,2]
[426743530,1782777056000,-1362.0,0.00027452,2]
[426743531,1782777056000,-6087.0,0.00027452,2]
[426743532,1782777056000,-216.0,0.00027452,2]
[426743535,1782777056000,-350.0,0.00027549,2]
[426743537,1782777056000,-235.75,0.0002755,30]
[426743539,1782777056000,-154.12,0.0002755,2]
[426743544,1782777056000,-1096.10006908,0.0002764,2]
[426743536,1782777056000,-335.77,0.0002755,30]
[426743545,1782777056000,-1082.38325447,0.0002764,2]
[426743543,1782777056000,-154.12,0.00027611,30]
[426743542,1782777056000,-154.12,0.0002758,7]
[426743538,1782777056000,-337.82,0.0002755,30]
[426743541,1782777056000,-350.0,0.00027577,2]
[426743547,1782777056000,-1129.55631188,0.0002764,2]
[426743546,1782777056000,-990.2519309,0.0002764,2]
[426743487,1782777056000,-854.88367207,0.00026839,2]
[426743522,1782777056000,-650.19323325,0.00027397,2]
[426743518,1782777056000,-162.54830831,0.00027397,2]
[426743540,1782777056000,-337.81,0.0002755,30]
[426743519,1782777056000,-257.29701076,0.00027397,2]
[426743517,1782777056000,-3098.76,0.00027397,2]
[426743494,1782777056000,-880.22393858,0.0002694,2]
[426743548,1782777056000,-970.7572155,0.0002764,2]
[426743491,1782777056000,-154.46935744,0.00026887,2]
[426743507,1782777056000,-500.0,0.00027397,2]
[426743508,1782777056000,-500.0,0.00027397,2]
[426743496,1782777056000,-521.16,0.0002708,7]
[426743498,1782777056000,-194.09796074,0.00027397,7]
[426743499,1782777056000,-150.0,0.00027397,2]
[426743502,1782777056000,-500.0,0.00027397,2]
[426743500,1782777056000,-500.0,0.00027397,2]
[426743504,1782777056000,-500.0,0.00027397,2]
[426743501,1782777056000,-599.49168476,0.00027397,2]
[426743497,1782777056000,-150.0,0.00027097,5]
[426743505,1782777056000,-500.0,0.00027397,2]
[426743503,1782777056000,-500.0,0.00027397,2]
[426743521,1782777056000,-487.64492494,0.00027397,2]
[426743520,1782777056000,-325.09661662,0.00027397,2]
[426743514,1782777056000,-1500.0,0.00027397,2]
[426743513,1782777056000,-150.0,0.00027397,2]
[426743510,1782777056000,-500.0,0.00027397,2]
[426743511,1782777056000,-500.0,0.00027397,2]
[426743512,1782777056000,-638.54236203,0.00027397,2]
[426743515,1782777056000,-1026.86,0.00027397,2]
[426743509,1782777056000,-500.0,0.00027397,2]
[426743506,1782777056000,-500.0,0.00027397,2]
[426743516,1782777056000,-300.0,0.00027397,2]
[426743574,1782777057000,-196.0,0.0002784,2]
[426743581,1782777057000,-337.81,0.00027872,2]
[426743568,1782777057000,-154.27,0.00027794,30]
[426743577,1782777057000,-154.12,0.00027855,7]
[426743575,1782777057000,-154.46935744,0.00027847,2]
[426743576,1782777057000,-154.27,0.00027855,7]
[426743578,1782777057000,-335.77,0.00027872,2]
[426743573,1782777057000,-160.0,0.0002784,2]
[426743570,1782777057000,-154.27,0.00027824,2]
[426743592,1782777057000,-38917.77150469,0.00027957,2]
[426743583,1782777057000,-154.12,0.00027885,30]
[426743585,1782777057000,-162.64,0.000279,7]
[426743588,1782777057000,-1123.4057756,0.00027921,2]
[426743590,1782777057000,-154.12,0.00027946,7]
[426743586,1782777057000,-154.27,0.00027916,2]
[426743587,1782777057000,-154.12,0.00027916,2]
[426743589,1782777057000,-154.27,0.00027946,7]
[426743572,1782777057000,-318.0,0.0002784,2]
[426743591,1782777057000,-812.74154156,0.00027956,2]
[426743584,1782777057000,-1037.3317377,0.00027887,2]
[426743571,1782777057000,-154.12,0.00027824,2]
[426743558,1782777057000,-154.12,0.00027702,30]
[426743579,1782777057000,-235.75,0.00027872,2]
[426743582,1782777057000,-154.27,0.00027885,30]
[426743551,1782777057000,-940.15255241,0.00027657,2]
[426743549,1782777057000,-154.12,0.00027641,2]
[426743550,1782777057000,-903.70559543,0.00027657,2]
[426743555,1782777057000,-1025.86040648,0.00027676,2]
[426743554,1782777057000,-154.12,0.00027672,7]
[426743552,1782777057000,-953.40799736,0.00027657,2]
[426743553,1782777057000,-1046.5840802,0.00027657,2]
[426743556,1782777057000,-1110.85410007,0.00027676,2]
[426743580,1782777057000,-337.82,0.00027872,2]
[426743559,1782777057000,-951.76,0.00027711,2]
[426743557,1782777057000,-971.9651795,0.00027676,2]
[426743561,1782777057000,-235.75,0.00027711,7]
[426743562,1782777057000,-337.82,0.00027711,7]
[426743565,1782777057000,-154.12,0.00027733,2]
[426743567,1782777057000,-154.12,0.00027763,7]
[426743564,1782777057000,-154.27,0.00027733,2]
[426743566,1782777057000,-154.27,0.00027763,7]
[426743563,1782777057000,-337.81,0.00027711,7]
[426743569,1782777057000,-154.12,0.00027794,30]
[426743560,1782777057000,-335.77,0.00027711,7]
[426743595,1782777057000,-154.12,0.00027977,30]
[426743594,1782777057000,-154.27,0.00027977,30]
[426743631,1782777057000,-335.77,0.00028516,30]
[426743621,1782777057000,-505.0,0.00028333,13]
[426743625,1782777057000,-250.0,0.00028373,11]
[426743616,1782777057000,-257.01,0.000283,7]
[426743620,1782777057000,-459.59467,0.0002832,2]
[426743624,1782777057000,-227.12409933,0.00028366,2]
[426743626,1782777057000,-200.0,0.00028375,2]
[426743628,1782777057000,-261.27,0.000284,7]
[426743627,1782777057000,-951.76,0.00028396,2]
[426743630,1782777057000,-238.57594525,0.00028515,2]
[426743623,1782777057000,-235.75,0.00028355,2]
[426743636,1782777057000,-312.0,0.00028602,30]
[426743632,1782777057000,-235.75,0.00028516,30]
[426743633,1782777057000,-157.0,0.00028602,30]
[426743634,1782777057000,-275.0,0.00028602,30]
[426743629,1782777057000,-225.16,0.000284,7]
[426743637,1782777057000,-279.79824217,0.00028605,2]
[426743638,1782777057000,-200.0,0.00028605,2]
[426743640,1782777057000,-156.01903518,0.00028605,2]
[426743639,1782777057000,-200.0,0.00028605,2]
[426743593,1782777057000,-150.0,0.00027973,2]
[426743635,1782777057000,-154.0,0.00028602,30]
[426743622,1782777057000,-335.77,0.00028355,2]
[426743619,1782777057000,-459.59468,0.0002832,2]
[426743617,1782777057000,-479.930467,0.00028319,7]
[426743596,1782777057000,-154.27,0.00028007,2]
[426743597,1782777057000,-154.12,0.00028007,2]
[426743600,1782777057000,-337.82,0.00028033,30]
[426743601,1782777057000,-337.81,0.00028033,30]
[426743603,1782777057000,-154.12,0.00028038,7]
[426743618,1782777057000,-459.59467,0.0002832,2]
[426743602,1782777057000,-154.27,0.00028038,7]
[426743598,1782777057000,-335.77,0.00028033,30]
[426743604,1782777057000,-350.0,0.00028041,2]
[426743610,1782777057000,-154.42,0.0002813,7]
[426743599,1782777057000,-235.75,0.00028033,30]
[426743606,1782777057000,-154.12,0.00028068,30]
[426743608,1782777057000,-154.12,0.00028099,2]
[426743607,1782777057000,-154.27,0.00028099,2]
[426743609,1782777057000,-500.0,0.00028129,7]
[426743612,1782777057000,-335.77,0.00028194,7]
[426743611,1782777057000,-154.22,0.0002813,7]
[426743614,1782777057000,-337.82,0.00028194,7]
[426743613,1782777057000,-235.75,0.00028194,7]
[426743605,1782777057000,-154.27,0.00028068,30]
[426743615,1782777057000,-337.81,0.00028194,7]
[426743670,1782777058000,-1518.98815384,0.0002885,2]
[426743680,1782777058000,-200.0,0.00028891,2]
[426743679,1782777058000,-92697.87434655,0.0002888,60]
[426743675,1782777058000,-630.48,0.00028879,120]
[426743676,1782777058000,-546.01,0.00028879,120]
[426743684,1782777058000,-1317.81569719,0.00028896,2]
[426743681,1782777058000,-1278.78341393,0.00028896,2]
[426743674,1782777058000,-500.0,0.00028879,14]
[426743685,1782777058000,-350.0,0.00028897,2]
[426743683,1782777058000,-1155.29391939,0.00028896,2]
[426743682,1782777058000,-1262.78046354,0.00028896,2]
[426743677,1782777058000,-500.0,0.00028879,5]
[426743673,1782777058000,-820.01,0.00028879,120]
[426743694,1782777058000,-500.0,0.00029,2]
[426743689,1782777058000,-1196.8371409,0.00028933,2]
[426743686,1782777058000,-190.0,0.000289,2]
[426743688,1782777058000,-1112.30933026,0.00028914,2]
[426743695,1782777058000,-173.58,0.00029,7]
[426743687,1782777058000,-1096.84464448,0.00028914,2]
[426743690,1782777058000,-180.36884801,0.00028973,2]
[426743698,1782777058000,-500.0,0.00029,2]
[426743692,1782777058000,-429.98981624,0.00029,2]
[426743696,1782777058000,-10000.0,0.00029,2]
[426743697,1782777058000,-408.68608454,0.00029,2]
[426743691,1782777058000,-537.23,0.00028973,2]
[426743672,1782777058000,-557.35,0.00028879,120]
[426743678,1782777058000,-2485.5,0.00028879,7]
[426743664,1782777058000,-975.28984987,0.00028793,2]
[426743647,1782777058000,-664.0,0.0002861,30]
[426743668,1782777058000,-335.77,0.00028838,2]
[426743642,1782777058000,-459.59467,0.00028605,2]
[426743643,1782777058000,-459.59467,0.00028605,2]
[426743644,1782777058000,-560.0,0.0002861,30]
[426743641,1782777058000,-459.59467,0.00028605,2]
[426743646,1782777058000,-252.0,0.0002861,30]
[426743645,1782777058000,-201.0,0.0002861,30]
[426743648,1782777058000,-152.0,0.0002861,30]
[426743650,1782777058000,-869.0,0.00028619,30]
[426743652,1782777058000,-232.0,0.00028619,30]
[426743649,1782777058000,-171.0,0.0002861,30]
[426743651,1782777058000,-204.0,0.00028619,30]
[426743654,1782777058000,-1518.98815384,0.00028629,2]
[426743669,1782777058000,-235.75,0.00028838,2]
[426743653,1782777058000,-2000.0,0.00028624,7]
[426743659,1782777058000,-335.77,0.00028677,7]
[426743658,1782777058000,-1000.0,0.00028658,2]
[426743657,1782777058000,-323.03291747,0.00028658,2]
[426743655,1782777058000,-2274.79609176,0.0002864,2]
[426743656,1782777058000,-1000.0,0.00028658,2]
[426743662,1782777058000,-150.0,0.00028767,2]
[426743663,1782777058000,-537.23,0.00028767,2]
[426743665,1782777058000,-350.0,0.00028802,2]
[426743666,1782777058000,-154.46935744,0.00028808,2]
[426743667,1782777058000,-769.39284705,0.00028816,2]
[426743661,1782777058000,-771779.9023117,0.00028695,2]
[426743671,1782777058000,-173.58,0.00028863,7]
[426743660,1782777058000,-235.75,0.00028677,7]
[426743693,1782777058000,-50439.98595021,0.00029,7]
[426743742,1782777058000,-500.0,0.00029,2]
[426743700,1782777058000,-500.0,0.00029,2]
[426743731,1782777058000,-216.58458871,0.00029,30]
[426743733,1782777058000,-500.0,0.00029,2]
[426743735,1782777058000,-500.0,0.00029,2]
[426743745,1782777058000,-500.0,0.00029,2]
[426743744,1782777058000,-500.0,0.00029,2]
[426743734,1782777058000,-500.0,0.00029,2]
[426743737,1782777058000,-500.0,0.00029,2]
[426743741,1782777058000,-500.0,0.00029,2]
[426743740,1782777058000,-500.0,0.00029,2]
[426743739,1782777058000,-500.0,0.00029,2]
[426743738,1782777058000,-500.0,0.00029,2]
[426743736,1782777058000,-500.0,0.00029,2]
[426743723,1782777058000,-500.0,0.00029,2]
[426743743,1782777058000,-500.0,0.00029,2]
[426743749,1782777058000,-235.8,0.00029,30]
[426743747,1782777058000,-10000.0,0.00029,2]
[426743750,1782777058000,-335.8,0.00029,30]
[426743752,1782777058000,-793.16386891,0.00029019,7]
[426743757,1782777058000,-2274.79609176,0.00029179,2]
[426743748,1782777058000,-529.35487016,0.00029,2]
[426743753,1782777058000,-951.77,0.00029081,2]
[426743756,1782777058000,-537.23,0.00029178,2]
[426743751,1782777058000,-1915.0,0.00029,2]
[426743755,1782777058000,-505.0,0.00029167,14]
[426743701,1782777058000,-500.0,0.00029,2]
[426743758,1782777058000,-200.0,0.0002918,2]
[426743746,1782777058000,-500.0,0.00029,2]
[426743730,1782777058000,-999.0,0.00029,2]
[426743754,1782777058000,-257.01,0.000291,7]
[426743732,1782777058000,-216.58458871,0.00029,7]
[426743722,1782777058000,-500.0,0.00029,2]
[426743702,1782777058000,-500.0,0.00029,2]
[426743710,1782777058000,-500.0,0.00029,2]
[426743703,1782777058000,-500.0,0.00029,2]
[426743707,1782777058000,-500.0,0.00029,2]
[426743704,1782777058000,-500.0,0.00029,2]
[426743705,1782777058000,-500.0,0.00029,2]
[426743708,1782777058000,-500.0,0.00029,2]
[426743706,1782777058000,-500.0,0.00029,2]
[426743709,1782777058000,-200.0,0.00029,2]
[426743711,1782777058000,-200.0,0.00029,2]
[426743714,1782777058000,-315.98,0.00029,2]
[426743713,1782777058000,-513.48,0.00029,2]
[426743699,1782777058000,-500.0,0.00029,2]
[426743729,1782777058000,-4820.69049011,0.00029,2]
[426743725,1782777058000,-608.21,0.00029,2]
[426743728,1782777058000,-3811.74045623,0.00029,2]
[426743726,1782777058000,-177.27485679,0.00029,2]
[426743724,1782777058000,-500.0,0.00029,2]
[426743712,1782777058000,-500.0,0.00029,2]
[426743721,1782777058000,-500.0,0.00029,2]
[426743727,1782777058000,-193.24830951,0.00029,2]
[426743719,1782777058000,-500.0,0.00029,2]
[426743717,1782777058000,-500.0,0.00029,2]
[426743718,1782777058000,-500.0,0.00029,2]
[426743716,1782777058000,-500.0,0.00029,2]
[426743715,1782777058000,-500.0,0.00029,2]
[426743720,1782777058000,-500.0,0.00029,2]
[426743799,1782777059000,-324.0789761,0.000299,2]
[426743794,1782777059000,-459.66118405,0.000299,2]
[426743797,1782777059000,-324.07897618,0.000299,2]
[426743793,1782777059000,-80720.5390396,0.000299,2]
[426743819,1782777059000,-151.0,0.00029997,7]
[426743792,1782777059000,-1518.98815384,0.00029899,2]
[426743791,1782777059000,-2485.5,0.00029899,7]
[426743789,1782777059000,-537.23,0.00029795,2]
[426743800,1782777059000,-324.0789761,0.000299,2]
[426743798,1782777059000,-324.0789761,0.000299,2]